Workbook

Sheet Blank
A1: Crop Description | J1: Number of acres: | L1: 1
D3: Quantity | H3: Price or | J3: Total | L3: Value or
B4: Item | D4: Per Acre | F4: Unit | H4: Cost | J4: Value | L4: Cost/Acre | O4: Instructions:
B6: Gross Returns | O6: Enter information in white cells.
J7: =L7*$L$1 -> 0 | L7: =D7*H7 -> 0 | O7: Values in blue cells are calculated.
J8: =L8*$L$1 -> 0 | L8: =D8*H8 -> 0 | O8: Enter number of acres in cell L1.
J9: =L9*$L$1 -> 0 | L9: =D9*H9 -> 0
B10: Total Gross Returns | J10: =SUM(J7:J9) -> 0 | L10: =SUM(L7:L9) -> 0
B12: Operating Inputs | O12: Questions:
B14: Seed: | J14: =L14*$L$1 -> 0 | L14: =SUM(L15:L16) -> 0 | O14: Ben Eborn
J15: 0 | L15: =D15*H15 -> 0 | O15: Extension Ag Economist
J16: 0 | L16: =D16*H16 -> 0 | O16: University of Idaho
B18: Fertilizer: | J18: 0 | L18: =SUM(L19:L25) -> 0 | O18: beborn@uidaho.edu
J19: 0 | L19: =D19*H19 -> 0 | O19: (208) 847-0344
J20: 0 | L20: 0
J21: 0 | L21: 0
J22: 0 | L22: 0
J23: 0 | L23: 0
J24: 0 | L24: 0
J25: 0 | L25: 0
B27: Pesticide: | J27: 0 | L27: =SUM(L28:L33) -> 0
J28: 0 | L28: =D28*H28 -> 0
J29: 0 | L29: 0
J30: 0 | L30: 0
J31: 0 | L31: 0
J32: 0 | L32: 0
J33: 0 | L33: 0
B35: Custom: | J35: 0 | L35: =SUM(L36:L40) -> 0
J36: 0 | L36: =D36*H36 -> 0
J37: 0 | L37: =D37*H37 -> 0
J38: 0 | L38: =D38*H38 -> 0
J39: 0 | L39: =D39*H39 -> 0
J40: 0 | L40: =D40*H40 -> 0
B42: Irrigation | J42: =L42*$L$1 -> 0 | L42: =SUM(L43:L45) -> 0
J43: 0 | L43: =D43*H43 -> 0
J44: 0 | L44: =D44*H44 -> 0
J45: 0 | L45: =D45*H45 -> 0
B47: Machinery: | J47: 0 | L47: =SUM(L48:L52) -> 0
J48: 0 | L48: =D48*H48 -> 0
J49: 0 | L49: =D49*H49 -> 0
J50: 0 | L50: =D50*H50 -> 0
J51: =L51*$L$1 -> 0 | L51: =D51*H51 -> 0
J52: 0 | L52: =D52*H52 -> 0
B54: Labor: | J54: 0 | L54: =SUM(L55:L57) -> 0
J55: 0 | L55: =D55*H55 -> 0
J56: 0 | L56: =D56*H56 -> 0
J57: 0 | L57: =D57*H57 -> 0
B59: Other: | J59: 0 | L59: =SUM(L60:L62) -> 0
J60: 0 | L60: =D60*H60 -> 0
J61: 0 | L61: =D61*H61 -> 0
J62: 0 | L62: =D62*H62 -> 0
B64: Interest on Operating Capital at | D64: ###% | J64: 0
B66: Total Operating Costs | J66: 0 | L66: =L14+L18+L27+L35+L47+L54+L59+L64+L42 -> 0
B67: Operating Costs per Unit | L67: =L66/D7 -> 
B69: Net Returns Above Operating Costs | J69: 0 | L69: =L10-L66 -> 0
B71: Ownership Costs:
B72: General Overhead | J72: =L72*$L$1 -> 0
B73: Land Rent | J73: =L73*$L$1 -> 0
B74: Management Fee | J74: 0
B75: Property Taxes | J75: 0
B76: Property Insurance | J76: 0
B77: Investment Repairs | J77: 0
B78: Capital Recovery - Equipment | J78: 0
B80: Total Ownership Costs | J80: =L80*$L$1 -> 0 | L80: =SUM(L71:L78) -> 0
B81: Ownership Costs per Unit | L81: =L80/D7 -> 
B83: Total Costs per Acre | J83: 0 | L83: =L66+L80 -> 0
B84: Total Cost per Unit | L84: =L83/D7 -> 
B86: Returns to Risk | J86: 0 | L86: =L10-L83 -> 0
B88: Notes:
B95: Breakeven Analysis: | D95: - | F95: Base | H95: +
D96: 0.1 | H96: 0.1
F97: Yield
B98: Price | D98: =F98*(1-D96) -> 0 | F98: =D7 -> 0 | H98: =F98*(1+H96) -> 0
B100: Operating Cost Breakeven | D100: =$L$66/D98 ->  | F100: =$L$66/F98 ->  | H100: =$L$66/H98 -> 
B102: Ownership Cost Breakeven | D102: =$L$80/D98 ->  | F102: =$L$80/F98 ->  | H102: =$L$80/H98 -> 
B104: Total Cost Breakeven | D104: =$L$83/D98 ->  | F104: =$L$83/F98 ->  | H104: =$L$83/H98 -> 
F107: Price
B108: Yield | D108: =F108*(1-D96) -> 0 | F108: =H7 -> 0 | H108: =F108*(1+H96) -> 0
B110: Operating Cost Breakeven | D110: =$L$66/D108 ->  | F110: =$L$66/F108 ->  | H110: =$L$66/H108 -> 
B112: Ownership Cost Breakeven | D112: =$L$80/D108 ->  | F112: =$L$80/F108 ->  | H112: =$L$80/H108 -> 
B114: Total Cost Breakeven | D114: =$L$83/D108 ->  | F114: =$L$83/F108 ->  | H114: =$L$83/H108 -> 

Sheet Alfalfa
A1: Alfalfa Hay - Treasure Valley - 2017 | J1: Number of acres: | L1: 150
D3: Quantity | H3: Price or | J3: Total | L3: Value or
B4: Item | D4: Per Acre | F4: Unit | H4: Cost | J4: Value | L4: Cost/Acre
B6: Gross Returns
B7: Alfalfa Hay | D7: 7.5 | F7: ton | H7: 130 | J7: =L7*$L$1 -> 146250 | L7: =D7*H7 -> 975
J8: =L8*$L$1 -> 0 | L8: =D8*H8 -> 0
J9: 0 | L9: 0
B10: Total Gross Returns | J10: =SUM(J7:J9) -> 146250 | L10: =SUM(L7:L9) -> 975
B12: Operating Inputs
B14: Fertilizer: | J14: =L14*$L$1 -> 10215 | L14: =SUM(L15:L21) -> 68.1
B15: Dry Nitrogen | D15: 15 | F15: lb | H15: 0.4 | J15: 900 | L15: =D15*H15 -> 6
B16: Dry P2O5 | D16: 75 | F16: lb | H16: 0.38 | J16: 4275 | L16: 28.5
B17: K2O | D17: 80 | F17: lb | H17: 0.31 | J17: 3720 | L17: 24.8
B18: Sulfur | D18: 40 | F18: lb | H18: 0.22 | J18: 1320 | L18: 8.8
J19: 0 | L19: 0
J20: 0 | L20: 0
J21: 0 | L21: 0
B23: Pesticides: | J23: 2782.5 | L23: =SUM(L24:L29) -> 18.55
B24: Metribuzin 75DF | D24: 1 | F24: lb | H24: 11.5 | J24: 1725 | L24: =D24*H24 -> 11.5
B25: Warrior II w/Zeon Tech | D25: 3 | F25: fl oz | H25: 2.35 | J25: 1057.5 | L25: 7.05
J26: 0 | L26: 0
J27: 0 | L27: 0
J28: 0 | L28: 0
J29: 0 | L29: 0
B31: Custom & Consultants: | J31: 42525 | L31: =SUM(L32:L36) -> 283.5
B32: Custom Fertilize | D32: 1 | F32: acre | H32: 7.75 | J32: 1162.5 | L32: =D32*H32 -> 7.75
B33: Custom Swath & Rake | D33: 4 | F33: acre | H33: 23 | J33: 13800 | L33: =D33*H33 -> 92
B34: Custom Bale: 1-ton | D34: 7.5 | F34: ton | H34: 18 | J34: 20250 | L34: =D34*H34 -> 135
B35: Custom Haul & Stack: 1-ton | D35: 7.5 | F35: ton | H35: 6.5 | J35: 7312.5 | L35: =D35*H35 -> 48.75
J36: 0 | L36: =D36*H36 -> 0
B38: Irrigation: | J38: 8475 | L38: =SUM(L39:L41) -> 56.5
B39: Water Assessment | D39: 1 | F39: acre | H39: 53.5 | J39: 8025 | L39: =D39*H39 -> 53.5
B40: Repairs - Conc. Ditch | D40: 1 | F40: acre | H40: 3 | J40: 450 | L40: =D40*H40 -> 3
J41: 0 | L41: =D41*H41 -> 0
B43: Machinery: | J43: 1880.55 | L43: =SUM(L44:L48) -> 12.537
B44: Fuel - Gas | D44: 1.28 | F44: gal | H44: 2.55 | J44: 489.6 | L44: =D44*H44 -> 3.264
B45: Fuel - Diesel | D45: 1.65 | F45: gal | H45: 2.35 | J45: 581.625 | L45: =D45*H45 -> 3.8775
B46: Fuel - Road Diesel | D46: 0.63 | F46: gal | H46: 2.85 | J46: 269.325 | L46: =D46*H46 -> 1.7955
B47: Lube | D47: 1 | F47: $ | H47: 1.34 | J47: 201 | L47: =D47*H47 -> 1.34
B48: Machinery Repair | D48: 1 | F48: $ | H48: 2.26 | J48: 339 | L48: =D48*H48 -> 2.26
B50: Labor: | J50: 13836 | L50: =SUM(L51:L53) -> 92.24
B51: Equipment Operator Labor | D51: 1.2 | F51: hrs | H51: 19.7 | J51: 3546 | L51: =D51*H51 -> 23.64
B52: Irrigation Labor | D52: 4.9 | F52: hrs | H52: 14 | J52: 10290 | L52: =D52*H52 -> 68.6
J53: 0 | L53: =D53*H53 -> 0
B55: Interest on Operating Capital at 5.75% | D55: 0.0625 | J55: 1672.5 | L55: 11.15
B57: Total Operating Costs | J57: 81386.55 | L57: =SUM(L14:L55)-(L14+L23+L31+L38+L43+L50) -> 542.577
B58: Operating Costs per Unit | J58: 10851.54 | L58: =L57/D7 -> 72.3436
B60: Net Returns Above Operating Costs | J60: 64863.45 | L60: =L10-L57 -> 432.423
A62: Alfalfa Hay - Treasure Valley - 2017 | J62: Number of acres: | L62: 150
B64: General Overhead | J64: =L64*$L$1 -> 2100 | L64: 14
B65: Land Rent | J65: =L65*$L$1 -> 33750 | L65: 225
B66: Management Fee | J66: 6750 | L66: 45
B67: Property Taxes | J67: 0
B68: Property Insurance | J68: 207 | L68: 1.38
B69: Investment Repairs | J69: 0
B70: Capital Recovery - Equipment | J70: 3244.5 | L70: 21.63
B71: Alfalfa Establishment - Est. Amort. Cost | J71: 9654 | L71: 64.36
B73: Total Ownership Costs | J73: =L73*$L$1 -> 55705.5 | L73: =SUM(L63:L71) -> 371.37
B74: Ownership Costs per Unit | J74: 7427.4 | L74: =L73/D7 -> 49.516
B76: Total Costs per Acre | J76: 137092.05 | L76: =L57+L73 -> 913.947
B77: Total Cost per Unit | J77: 18278.94 | L77: =L76/D7 -> 121.8596
B79: Returns to Risk | J79: 9157.95 | L79: =L10-L76 -> 61.053
B81: Notes:
B88: Breakeven Analysis: | D88: - | F88: Base | H88: +
D89: 0.1 | H89: 0.1
F90: Yield
B91: Price | D91: =F91*(1-D89) -> 6.75 | F91: =D7 -> 7.5 | H91: =F91*(1+H89) -> 8.25
B93: Operating Cost Breakeven | D93: =$L$57/D91 -> 80.38177778 | F93: =$L$57/F91 -> 72.3436 | H93: =$L$57/H91 -> 65.76690909
B95: Ownership Cost Breakeven | D95: =$L$73/D91 -> 55.01777778 | F95: =$L$73/F91 -> 49.516 | H95: =$L$73/H91 -> 45.01454545
B97: Total Cost Breakeven | D97: =$L$76/D91 -> 135.3995556 | F97: =$L$76/F91 -> 121.8596 | H97: =$L$76/H91 -> 110.7814545
F100: Price
B101: Yield | D101: =F101*(1-D89) -> 117 | F101: =H7 -> 130 | H101: =F101*(1+H89) -> 143
B103: Operating Cost Breakeven | D103: =$L$57/D101 -> 4.637410256 | F103: =$L$57/F101 -> 4.173669231 | H103: =$L$57/H101 -> 3.794244755
B105: Ownership Cost Breakeven | D105: =$L$73/D101 -> 3.174102564 | F105: =$L$73/F101 -> 2.856692308 | H105: =$L$73/H101 -> 2.596993007
B107: Total Cost Breakeven | D107: =$L$76/D101 -> 7.811512821 | F107: =$L$76/F101 -> 7.030361538 | H107: =$L$76/H101 -> 6.391237762

Sheet SWS Wheat
A1: Soft White Spring Wheat - Treasure Valley - 2017 | J1: Number of acres: | L1: 300
D3: Quantity | H3: Price or | J3: Total | L3: Value or
B4: Item | D4: Per Acre | F4: Unit | H4: Cost | J4: Value | L4: Cost/Acre
B6: Gross Returns
B7: Soft White Wheat | D7: 110 | F7: bu | H7: 4 | J7: =L7*$L$1 -> 132000 | L7: =D7*H7 -> 440
J8: =L8*$L$1 -> 0 | L8: =D8*H8 -> 0
J9: 0 | L9: 0
B10: Total Gross Returns | J10: =SUM(J7:J9) -> 132000 | L10: =SUM(L7:L9) -> 440
B12: Operating Inputs
B14: Seed: | J14: =L14*$L$1 -> 8100 | L14: =SUM(L15:L16) -> 27
B15: Wheat Seed: SWS | D15: 150 | F15: lb | H15: 0.18 | J15: 8100 | L15: =D15*H15 -> 27
J16: 0 | L16: =D16*H16 -> 0
B18: Fertilizer: | J18: 28518 | L18: =SUM(L19:L25) -> 95.06
B19: Dry Nitrogen | D19: 125 | F19: lb | H19: 0.4 | J19: 15000 | L19: =D19*H19 -> 50
B20: Dry P2O5 | D20: 50 | F20: lb | H20: 0.38 | J20: 5700 | L20: 19
B21: K2O | D21: 50 | F21: lb | H21: 0.31 | J21: 4650 | L21: 15.5
B22: Sulfur | D22: 48 | F22: lb | H22: 0.22 | J22: 3168 | L22: 10.56
J23: 0 | L23: 0
J24: 0 | L24: 0
J25: 0 | L25: 0
B27: Pesticides: | J27: 3297 | L27: =SUM(L28:L32) -> 10.99
B28: Bronate Advanced | D28: 0.8 | F28: pint | H28: 5.6 | J28: 1344 | L28: =D28*H28 -> 4.48
B29: Affinity Broad Spectrum | D29: 0.6 | F29: oz | H29: 9.6 | J29: 1728 | L29: 5.76
B30: N-I Surfactant + UAN | D30: 1 | F30: acre | H30: 0.75 | J30: 225 | L30: 0.75
J31: 0 | L31: 0
J32: 0 | L32: 0
B34: Custom & Consultants: | J34: 21390 | L34: =SUM(L35:L39) -> 71.3
B35: Custom Fertilize | D35: 2 | F35: acre | H35: 7.75 | J35: 4650 | L35: =D35*H35 -> 15.5
B36: Custom Combine | D36: 1 | F36: acre | H36: 36 | J36: 10800 | L36: =D36*H36 -> 36
B37: Custome Haul | D37: 110 | F37: bu | H37: 0.18 | J37: 5940 | L37: =D37*H37 -> 19.8
J38: 0 | L38: =D38*H38 -> 0
J39: 0 | L39: =D39*H39 -> 0
B41: Irrigation: | J41: 16950 | L41: =SUM(L42:L44) -> 56.5
B42: Water Assessment | D42: 1 | F42: acre | H42: 53.5 | J42: 16050 | L42: =D42*H42 -> 53.5
B43: Repairs - Conc. Ditch | D43: 1 | F43: acre | H43: 3 | J43: 900 | L43: =D43*H43 -> 3
J44: 0 | L44: =D44*H44 -> 0
B46: Machinery: | J46: 10423.8 | L46: =SUM(L47:L51) -> 34.746
B47: Fuel - Gas | D47: 1.28 | F47: gal | H47: 2.55 | J47: 979.2 | L47: =D47*H47 -> 3.264
B48: Fuel - Diesel | D48: 7.02 | F48: gal | H48: 2.35 | J48: 4949.1 | L48: =D48*H48 -> 16.497
B49: Fuel - Road Diesel | D49: 0.1 | F49: gal | H49: 2.85 | J49: 85.5 | L49: =D49*H49 -> 0.285
B50: Lube | D50: 1 | F50: $ | H50: 3.1 | J50: =L50*$L$1 -> 930 | L50: =D50*H50 -> 3.1
B51: Machinery Repair | D51: 1 | F51: $ | H51: 11.6 | J51: 3480 | L51: =D51*H51 -> 11.6
B53: Labor: | J53: 21713.1 | L53: =SUM(L54:L56) -> 72.377
B54: Equipment Operator Labor | D54: 1.76 | F54: hrs | H54: 19.7 | J54: 10401.6 | L54: =D54*H54 -> 34.672
B55: General Farm Labor | D55: 0.3 | F55: hrs | H55: 11.35 | J55: 1021.5 | L55: =D55*H55 -> 3.405
B56: Irrigation Labor | D56: 2.45 | F56: hrs | H56: 14 | J56: 10290 | L56: =D56*H56 -> 34.3
B58: Other: | J58: 4500 | L58: =SUM(L59:L61) -> 15
B59: Crop Insurance | D59: 1 | F59: acre | H59: 15 | J59: 4500 | L59: =D59*H59 -> 15
J60: 0 | L60: =D60*H60 -> 0
J61: 0 | L61: =D61*H61 -> 0
B63: Interest on Operating Capital at 5.75% | D63: 0.0625 | J63: 2865 | L63: 9.55
B65: Total Operating Costs | J65: 117756.9 | L65: =SUM(L14:L63)-(L14+L18+L27+L34+L41+L46+L53+L58) -> 392.523
B66: Operating Costs per Unit | J66: 1070.517273 | L66: =L65/D7 -> 3.568390909
B68: Net Returns Above Operating Costs | J68: 14243.1 | L68: =L10-L65 -> 47.477
A70: Soft White Spring Wheat - Treasure Valley - 2017 | J70: Number of acres: | L70: 300
B71: Ownership Costs:
B72: General Overhead | J72: =L72*$L$1 -> 2700 | L72: 9
B73: Land Rent | J73: =L73*$L$1 -> 67500 | L73: 225
B74: Management Fee | J74: 10200 | L74: 34
B75: Property Taxes | J75: 0
B76: Property Insurance | J76: 426 | L76: 1.42
B77: Investment Repairs | J77: 0
B78: Capital Recovery - Equipment | J78: 13494 | L78: 44.98
J79: 0
B81: Total Ownership Costs | J81: =L81*$L$1 -> 94320 | L81: =SUM(L71:L79) -> 314.4
B82: Ownership Costs per Unit | J82: 857.4545455 | L82: =L81/D7 -> 2.858181818
B84: Total Costs per Acre | J84: 212076.9 | L84: =L65+L81 -> 706.923
B85: Total Cost per Unit | J85: 1927.971818 | L85: =L84/D7 -> 6.426572727
B87: Returns to Risk | J87: -80076.9 | L87: =L10-L84 -> -266.923
B89: Notes:
B96: Breakeven Analysis: | D96: - | F96: Base | H96: +
D97: 0.1 | H97: 0.1
F98: Yield
B99: Price | D99: =F99*(1-D97) -> 99 | F99: =D7 -> 110 | H99: =F99*(1+H97) -> 121
B101: Operating Cost Breakeven | D101: =$L$65/D99 -> 3.964878788 | F101: =$L$65/F99 -> 3.568390909 | H101: =$L$65/H99 -> 3.243991736
B103: Ownership Cost Breakeven | D103: =$L$81/D99 -> 3.175757576 | F103: =$L$81/F99 -> 2.858181818 | H103: =$L$81/H99 -> 2.598347107
B105: Total Cost Breakeven | D105: =$L$84/D99 -> 7.140636364 | F105: =$L$84/F99 -> 6.426572727 | H105: =$L$84/H99 -> 5.842338843
F108: Price
B109: Yield | D109: =F109*(1-D97) -> 3.6 | F109: =H7 -> 4 | H109: =F109*(1+H97) -> 4.4
B111: Operating Cost Breakeven | D111: =$L$65/D109 -> 109.0341667 | F111: =$L$65/F109 -> 98.13075 | H111: =$L$65/H109 -> 89.20977273
B113: Ownership Cost Breakeven | D113: =$L$81/D109 -> 87.33333333 | F113: =$L$81/F109 -> 78.6 | H113: =$L$81/H109 -> 71.45454545
B115: Total Cost Breakeven | D115: =$L$84/D109 -> 196.3675 | F115: =$L$84/F109 -> 176.73075 | H115: =$L$84/H109 -> 160.6643182

Sheet SWW Wheat
A1: Soft White Winter Wheat - Treasure Valley - 2017 | J1: Number of acres: | L1: 300
D3: Quantity | H3: Price or | J3: Total | L3: Value or
B4: Item | D4: Per Acre | F4: Unit | H4: Cost | J4: Value | L4: Cost/Acre
B6: Gross Returns
B7: Soft White Wheat | D7: 130 | F7: bu | H7: 4 | J7: =L7*$L$1 -> 156000 | L7: =D7*H7 -> 520
J8: =L8*$L$1 -> 0 | L8: =D8*H8 -> 0
J9: 0 | L9: 0
B10: Total Gross Returns | J10: =SUM(J7:J9) -> 156000 | L10: =SUM(L7:L9) -> 520
B12: Operating Inputs
B14: Seed: | J14: =L14*$L$1 -> 5400 | L14: =SUM(L15:L16) -> 18
B15: Wheat Seed: SWS | D15: 100 | F15: lb | H15: 0.18 | J15: 5400 | L15: =D15*H15 -> 18
J16: 0 | L16: =D16*H16 -> 0
B18: Fertilizer: | J18: 31518 | L18: =SUM(L19:L25) -> 105.06
B19: Dry Nitrogen | D19: 150 | F19: lb | H19: 0.4 | J19: 18000 | L19: =D19*H19 -> 60
B20: Dry P2O5 | D20: 50 | F20: lb | H20: 0.38 | J20: 5700 | L20: 19
B21: K2O | D21: 50 | F21: lb | H21: 0.31 | J21: 4650 | L21: 15.5
B22: Sulfur | D22: 48 | F22: lb | H22: 0.22 | J22: 3168 | L22: 10.56
J23: 0 | L23: 0
J24: 0 | L24: 0
J25: 0 | L25: 0
B27: Pesticides: | J27: 3297 | L27: =SUM(L28:L33) -> 10.99
B28: Bronate Advanced | D28: 0.8 | F28: pint | H28: 5.6 | J28: 1344 | L28: =D28*H28 -> 4.48
B29: Affinity Broad Spectrum | D29: 0.6 | F29: oz | H29: 9.6 | J29: 1728 | L29: 5.76
B30: N-I Surfactant + UAN | D30: 1 | F30: acre | H30: 0.75 | J30: 225 | L30: 0.75
J31: 0 | L31: 0
J32: 0 | L32: 0
J33: 0 | L33: 0
B35: Custom & Consultants: | J35: 22470 | L35: =SUM(L36:L40) -> 74.9
B36: Custom Fertilize | D36: 2 | F36: acre | H36: 7.75 | J36: 4650 | L36: =D36*H36 -> 15.5
B37: Custom Combine | D37: 1 | F37: acre | H37: 36 | J37: 10800 | L37: =D37*H37 -> 36
B38: Custome Haul | D38: 130 | F38: bu | H38: 0.18 | J38: 7020 | L38: =D38*H38 -> 23.4
J39: 0 | L39: =D39*H39 -> 0
J40: 0 | L40: =D40*H40 -> 0
B42: Irrigation: | J42: 16950 | L42: =SUM(L43:L45) -> 56.5
B43: Water Assessment | D43: 1 | F43: acre | H43: 53.5 | J43: 16050 | L43: =D43*H43 -> 53.5
B44: Repairs - Conc. Ditch | D44: 1 | F44: acre | H44: 3 | J44: 900 | L44: =D44*H44 -> 3
J45: 0 | L45: =D45*H45 -> 0
B47: Machinery: | J47: 10113.9 | L47: =SUM(L48:L52) -> 33.713
B48: Fuel - Gas | D48: 1.28 | F48: gal | H48: 2.55 | J48: 979.2 | L48: =D48*H48 -> 3.264
B49: Fuel - Diesel | D49: 6.64 | F49: gal | H49: 2.35 | J49: 4681.2 | L49: =D49*H49 -> 15.604
B50: Fuel - Road Diesel | D50: 0.1 | F50: gal | H50: 2.85 | J50: 85.5 | L50: =D50*H50 -> 0.285
B51: Lube | D51: 1 | F51: $ | H51: 2.96 | J51: 888 | L51: =D51*H51 -> 2.96
B52: Machinery Repair | D52: 1 | F52: $ | H52: 11.6 | J52: 3480 | L52: =D52*H52 -> 11.6
B54: Labor: | J54: 21713.1 | L54: =SUM(L55:L57) -> 72.377
B55: Equipment Operator Labor | D55: 1.76 | F55: hrs | H55: 19.7 | J55: 10401.6 | L55: =D55*H55 -> 34.672
B56: Non-Machine Labor | D56: 0.3 | F56: hrs | H56: 11.35 | J56: 1021.5 | L56: =D56*H56 -> 3.405
B57: Irrigation Labor | D57: 2.45 | F57: hrs | H57: 14 | J57: 10290 | L57: =D57*H57 -> 34.3
B59: Other: | J59: 4500 | L59: =SUM(L60:L62) -> 15
B60: Crop Insurance | D60: 1 | F60: acre | H60: 15 | J60: 4500 | L60: =D60*H60 -> 15
J61: 0 | L61: =D61*H61 -> 0
J62: 0 | L62: =D62*H62 -> 0
B64: Interest on Operating Capital at 5.75% | D64: 0.0625 | J64: 2835 | L64: 9.45
B66: Total Operating Costs | J66: 118797 | L66: =SUM(L14:L64)-(L14+L18+L27+L35+L42+L47+L54+L59) -> 395.99
B67: Operating Costs per Unit | J67: 913.8230769 | L67: =L66/D7 -> 3.046076923
B69: Net Returns Above Operating Costs | J69: 37203 | L69: =L10-L66 -> 124.01
A71: Soft White Winter Wheat - Treasure Valley - 2017 | J71: Number of acres: | L71: 300
B72: Ownership Costs:
B73: General Overhead | J73: =L73*$L$1 -> 3000 | L73: 10
B74: Land Rent | J74: =L74*$L$1 -> 67500 | L74: 225
B75: Management Fee | J75: 10800 | L75: 36
B76: Property Taxes | J76: 0
B77: Property Insurance | J77: 426 | L77: 1.42
B78: Investment Repairs | J78: 0
B79: Capital Recovery - Equipment | J79: 13494 | L79: 44.98
J80: 0
B82: Total Ownership Costs | J82: =L82*$L$1 -> 95220 | L82: =SUM(L72:L80) -> 317.4
B83: Ownership Costs per Unit | J83: 732.4615385 | L83: =L82/D7 -> 2.441538462
B85: Total Costs per Acre | J85: 214017 | L85: =L66+L82 -> 713.39
B86: Total Cost per Unit | J86: 1646.284615 | L86: =L85/D7 -> 5.487615385
B88: Returns to Risk | J88: -58017 | L88: =L10-L85 -> -193.39
B90: Notes:
B97: Breakeven Analysis: | D97: - | F97: Base | H97: +
D98: 0.1 | H98: 0.1
F99: Yield
B100: Price | D100: =F100*(1-D98) -> 117 | F100: =D7 -> 130 | H100: =F100*(1+H98) -> 143
B102: Operating Cost Breakeven | D102: =$L$66/D100 -> 3.384529915 | F102: =$L$66/F100 -> 3.046076923 | H102: =$L$66/H100 -> 2.769160839
B104: Ownership Cost Breakeven | D104: =$L$82/D100 -> 2.712820513 | F104: =$L$82/F100 -> 2.441538462 | H104: =$L$82/H100 -> 2.21958042
B106: Total Cost Breakeven | D106: =$L$85/D100 -> 6.097350427 | F106: =$L$85/F100 -> 5.487615385 | H106: =$L$85/H100 -> 4.988741259
F109: Price
B110: Yield | D110: =F110*(1-D98) -> 3.6 | F110: =H7 -> 4 | H110: =F110*(1+H98) -> 4.4
B112: Operating Cost Breakeven | D112: =$L$66/D110 -> 109.9972222 | F112: =$L$66/F110 -> 98.9975 | H112: =$L$66/H110 -> 89.99772727
B114: Ownership Cost Breakeven | D114: =$L$82/D110 -> 88.16666667 | F114: =$L$82/F110 -> 79.35 | H114: =$L$82/H110 -> 72.13636364
B116: Total Cost Breakeven | D116: =$L$85/D110 -> 198.1638889 | F116: =$L$85/F110 -> 178.3475 | H116: =$L$85/H110 -> 162.1340909

Sheet Potato
A1: Table A-1. 2017 Costs to grow, harvest and sort Southwestern Idaho Russet Burbank potatoes with fumigation.
D3: Quantity | H3: Price or | K3: Value or
B4: Item | D4: Per Acre | F4: Unit | H4: Cost | K4: Cost/Acre
B6: Gross Returns
B7: Potatoes | D7: 500 | F7: cwt | H7: 7.75 | K7: =D7*H7 -> 3875
B8: Total Gross Returns | K8: =SUM(K7:K7) -> 3875
B10: Operating Inputs
B12: Seed: | K12: =SUM(K13:K14) -> 375.6
B13: G-3 Russet Burbank Seed | D13: 24 | F13: cwt | H13: 13.9 | K13: =D13*H13 -> 333.6
B14: Seed Cutting | D14: 24 | F14: cwt | H14: 1.75 | K14: =D14*H14 -> 42
B16: Fertilizer: | K16: =SUM(K17:K23) -> 405.85
B17: Dry Nitrogen - Preplant | D17: 175 | F17: lb | H17: 0.4 | K17: =D17*H17 -> 70
B18: Dry P2O5 | D18: 220 | F18: lb | H18: 0.38 | K18: 83.6
B19: K2O | D19: 255 | F19: lb | H19: 0.31 | K19: 79.05
B20: Sulfur | D20: 115 | F20: lb | H20: 0.22 | K20: 25.3
B21: Liquid Nitrogen | D21: 135 | F21: lb | H21: 0.5 | K21: 67.5
B22: Liquid P2O5 | D22: 65 | F22: lb | H22: 0.56 | K22: 36.4
B23: Micronutrients & Foliars | D23: 2 | F23: acre | H23: 22 | K23: 44
B25: Pesticides & Chemicals: | K25: =SUM(K26:K43) -> 575.295
B26: Vapam HL 42% | D26: 42 | F26: gal | H26: 5.5 | K26: =D26*H26 -> 231
B27: Seed Treatment | D27: 24 | F27: cwt | H27: 0.65 | K27: =D27*H27 -> 15.6
B28: Admire Pro | D28: 8 | F28: fl oz | H28: 1.25 | K28: 10
B29: Moncut 70DF | D29: 0.8 | F29: lb | H29: 29.8 | K29: 23.84
B30: Eptam 7E | D30: 4 | F30: pt | H30: 6.3 | K30: 25.2
B31: Metribuzin 75DF | D31: 0.75 | F31: lb | H31: 11.9 | K31: 8.925
B32: Prowl 3.3EC | D32: 2 | F32: pt | H32: 5.15 | K32: 10.3
B33: Quadris Flowable | D33: 8 | F33: fl oz | H33: 1.5 | K33: 12
B34: Endura (2x) | D34: 7 | F34: oz | H34: 4.55 | K34: 31.85
B35: Revus Top (2x) | D35: 12 | F35: fl oz | H35: 2.25 | K35: 27
B36: Bravo Weather Stik (2x) | D36: 3 | F36: pt | H36: 5.6 | K36: =D36*H36 -> 16.8
B37: Manzate Pro-Stick | D37: 2 | F37: lb | H37: 3.85 | K37: =D37*H37 -> 7.7
B38: Gavel 75DF | D38: 2 | F38: lb | H38: 8.5 | K38: =D38*H38 -> 17
B39: Fulfill WDG | D39: 5.5 | F39: oz | H39: 6.5 | K39: =D39*H39 -> 35.75
B40: Brigadier (2x) | D40: 12 | F40: fl oz | H40: 1.4 | K40: 16.8
B41: Movento | D41: 5 | F41: fl oz | H41: 8.3 | K41: 41.5
B42: Agri-Mek .75SC (2x) | D42: 7 | F42: fl oz | H42: 2.25 | K42: =D42*H42 -> 15.75
B43: Beleaf 50SG | D43: 2.8 | F43: oz | H43: 10.1 | K43: =D43*H43 -> 28.28
B45: Custom & Consultants: | K45: =SUM(K46:K50) -> 135.25
B46: Custom Fumigate - Deep Injection | D46: 1 | F46: acre | H46: 45 | K46: =D46*H46 -> 45
B47: Custom Fertilize: 400 - 800 lbs | D47: 1 | F47: acre | H47: 8 | K47: =D47*H47 -> 8
B48: Custom Fertilize: 0 - 400 lbs | D48: 1 | F48: acre | H48: 7.25 | K48: =D48*H48 -> 7.25
B49: Custom Air Spray - 5 gal | D49: 5 | F49: acre | H49: 9 | K49: 45
B50: Consultant & Soil/Pet. Test | D50: 1 | F50: acre | H50: 30 | K50: =D50*H50 -> 30
B52: Irrigation: | K52: =SUM(K53:K55) -> 130.07
B53: Water Assessment | D53: 1 | F53: acre | H53: 53.5 | K53: =D53*H53 -> 53.5
B54: Irrigation Repairs - Center Pivot | D54: 31 | F54: acre-inch | H54: 0.53 | K54: =D54*H54 -> 16.43
B55: Irrigation Power - Center Pivot | D55: 31 | F55: acre-inch | H55: 1.94 | K55: =D55*H55 -> 60.14
B57: Machinery: | K57: =SUM(K58:K62) -> 153.0775
B58: Fuel - Gas | D58: 5.32 | F58: gal | H58: 2.55 | K58: =D58*H58 -> 13.566
B59: Fuel - Farm Diesel | D59: 22.37 | F59: gal | H59: 2.35 | K59: =D59*H59 -> 52.5695
B60: Fuel - Road Diesel | D60: 2.32 | F60: gal | H60: 2.85 | K60: =D60*H60 -> 6.612
B61: Lube | D61: 1 | F61: $ | H61: 11.01 | K61: =D61*H61 -> 11.01
B62: Machinery Repairs | D62: 1 | F62: $ | H62: 69.32 | K62: =D62*H62 -> 69.32
B64: Labor: | K64: =SUM(K65:K69) -> 237.326
B65: Equipment Operator Labor | D65: 4.78 | F65: hrs | H65: 19.7 | K65: =D65*H65 -> 94.166
B66: Truck Driver Labor | D66: 3.6 | F66: hrs | H66: 15.35 | K66: =D66*H66 -> 55.26
B67: Irrigation Labor - Center Pivot | D67: 1.28 | F67: hrs | H67: 19.7 | K67: 25.216
B68: Irrigation Labor - Chem-Fert | D68: 1.2 | F68: hrs | H68: 19.7 | K68: =D68*H68 -> 23.64
B69: General Farm Labor | D69: 3.44 | F69: hrs | H69: 11.35 | K69: =D69*H69 -> 39.044
B71: Sorting: | K71: =SUM(K72:K74) -> 75
B72: Sorting Labor | D72: 500 | F72: cwt | H72: 0.115 | K72: =D72*H72 -> 57.5
B73: Sorting Equipment Repairs & Power | D73: 500 | F73: cwt | H73: 0.035 | K73: =D73*H73 -> 17.5
B75: Other: | K75: =SUM(K76:K77) -> 155.5
B76: Crop Insurance | D76: 1 | F76: acre | H76: 70 | K76: =D76*H76 -> 70
B77: Fees & Assessments | D77: 475 | F77: cwt | H77: 0.18 | K77: =D77*H77 -> 85.5
B79: Interest on Operating Capital at 6.25% | K79: 83.84
B81: Total Operating Costs | K81: =SUM(K12:K79)-(K12+K16+K25+K45+K52+K57+K64+K71+K75) -> 2326.8085
B82: Operating Costs per Unit | K82: =K81/D7 -> 4.653617
B84: Net Returns Above Operating Costs | K84: =K8-K81 -> 1548.1915
A86: Table A-1. 2017 Costs to grow, harvest and sort Southwestern Idaho Russet Burbank potatoes with fumigation.
D88: Quantity | H88: Price or | K88: Value or
B89: Item | D89: Per Acre | F89: Unit | H89: Cost | K89: Cost/Acre
B90: Ownership Costs:
B91: Tractors & Equipment Insurance | K91: 6.15
B92: Tractors & Equipment Depreciation & Interest | K92: 208
B93: Potato Handling Equipment Deprec. & Interest | K93: 79
B94: Land* | K94: 700
B95: Overhead | K95: 58
B96: Management Fee | K96: 177
B100: Total Ownership Costs | K100: =SUM(K90:K98) -> 1228.15
B101: Ownership Costs per Unit | K101: =K100/D7 -> 2.4563
B103: Total Costs per Acre | K103: =K81+K100 -> 3554.9585
B104: Total Cost per Unit | K104: =K103/D7 -> 7.109917
B106: Returns to Risk | K106: =K8-K103 -> 320.0415
B108: Notes:
B109: *Includes irrigation system ownership costs.
B110: Blue font indicates an increase.
B111: Red font indicates a decrease.
B112: A green font indicates a change in product or procedure to derive the cost.
B113: Procedural changes can result in different costs than were published the previous year.
B115: Breakeven Analysis: | D115: - | F115: Base | H115: +
D116: 0.05 | H116: 0.05
F117: Yield
B118: Price | D118: =F118*(1-D116) -> 475 | F118: =D7 -> 500 | H118: =F118*(1+H116) -> 525
B120: Operating Cost Breakeven | D120: =$K$81/D118 -> 4.898544211 | F120: =$K$81/F118 -> 4.653617 | H120: =$K$81/H118 -> 4.43201619
B122: Ownership Cost Breakeven | D122: =$K$100/D118 -> 2.585578947 | F122: =$K$100/F118 -> 2.4563 | H122: =$K$100/H118 -> 2.339333333
B124: Total Cost Breakeven | D124: =$K$103/D118 -> 7.484123158 | F124: =$K$103/F118 -> 7.109917 | H124: =$K$103/H118 -> 6.771349524
F127: Price
B128: Yield | D128: =F128*(1-D116) -> 7.3625 | F128: =H7 -> 7.75 | H128: =F128*(1+H116) -> 8.1375
B130: Operating Cost Breakeven | D130: =$K$81/D128 -> 316.0351104 | F130: =$K$81/F128 -> 300.2333548 | H130: =$K$81/H128 -> 285.9365284
B132: Ownership Cost Breakeven | D132: =$K$100/D128 -> 166.811545 | F132: =$K$100/F128 -> 158.4709677 | H132: =$K$100/H128 -> 150.9247312
B134: Total Cost Breakeven | D134: =$K$103/D128 -> 482.8466553 | F134: =$K$103/F128 -> 458.7043226 | H134: =$K$103/H128 -> 436.8612596
